Cogmind - Beta 13 X1 @@@ ROGUE MODE // 2023.07.08 @ 14:36:41 Player: cptwinky Result: Destroyed by 36-WS5(R) with Subdweller Shrapnel Launcher Performance ------------- Evolutions (0) 0 Regions Visited (3) 600 Robots Destroyed (36) 180 Value Destroyed (864) 864 Prototype IDs (14) 280 Alien Tech Used (0) 0 Bonus (0) 0 TOTAL SCORE: 1924 Bonus ------- None Cogmind --------- Core Integrity 0/250 Matter 205/300 Energy 265/265 System Corruption 0% Temperature Cool (0) Movement Treading (240) Ox1 Location -10/Subcaves Parts ------- > --- POWER (1) -------- Improved Ion Engine > --- PROPULSION (2) --- Light Treads Light Treads > --- UTILITY (2) ------ High-capacity Storage Unit Makeshift Thermal Plating > --- WEAPON (2) ------- Subdweller Beam Cannon Light Cannon > --- INVENTORY (20) --- Improved Ion Engine Light Treads Light Treads Light Treads Light Treads Light Treads Spiked Treads Arachnoskeleton Large Matter Pod (150) Light Armor Plating Trap Extractor (4/4 Piercing) Trap Extractor (0/4) Grenade Launcher Grenade Launcher Datajack Mining Laser Enhanced Flamer Shrapnel Trap Peak State ------------ > --- POWER ------------ Improved Ion Engine > --- PROPULSION ------- Light Treads Light Treads > --- UTILITY ---------- High-capacity Storage Unit Makeshift Thermal Plating > --- WEAPON ----------- Subdweller Beam Cannon Light Cannon > --- INVENTORY -------- Improved Ion Engine Light Treads Light Treads Light Treads Light Treads Light Treads Spiked Treads Arachnoskeleton Large Matter Pod Light Armor Plating Trap Extractor Trap Extractor Grenade Launcher Grenade Launcher Datajack Mining Laser Enhanced Flamer Shrapnel Trap [Rating: 16] Favorites ----------- Power Improved Ion Engine Engine Improved Ion Engine Propulsion Light Treads Treads Light Treads Leg Aluminum Leg Utility High-capacity Storage Unit Device Heat Sink Storage High-capacity Storage Unit Processor Visual Processing Unit Protection Backup Plating I Weapon Light Cannon Energy Gun EM Pulse Gun Energy Cannon Subdweller Beam Cannon Ballistic Gun Assault Rifle Ballistic Cannon Light Cannon Launcher Grenade Launcher Special Weapon Mining Laser Special Melee Weapon Datajack Build | -11 -10 -10 -10 ------- Run | Jun Mat Min Sub Slots Evolved . | . . . . Power . | . . . . Propulsion . | . . . . Utility . | . . . . Weapon . | . . . . Parts Attached 59 | 2 21 3 33 Power 2 | . 2 . . Engine 2 | . 2 . . Core . | . . . . Reactor . | . . . . Propulsion 7 | 2 3 . 2 Treads 7 | 2 3 . 2 Leg . | . . . . Wheel . | . . . . Hover . | . . . . Flight . | . . . . Utility 25 | . 7 . 18 Device 12 | . 3 . 9 Storage 2 | . 2 . . Processor 1 | . 1 . . Hackware . | . . . . Protection 10 | . 1 . 9 Artifact . | . . . . Weapon 25 | . 9 3 13 Energy Gun 3 | . 2 . 1 Energy Cannon 2 | . . . 2 Ballistic Gun 2 | . 2 . . Ballistic Cannon 9 | . 2 2 5 Launcher 5 | . 2 1 2 Special Weapon 1 | . . . 1 Impact Weapon . | . . . . Slashing Weapon . | . . . . Piercing Weapon . | . . . . Special Melee Weapon 3 | . 1 . 2 Unidentified Prototypes . | . . . . Parts Lost 2 | . 1 . 1 Power . | . . . . Propulsion . | . . . . Utility . | . . . . Weapon 2 | . 1 . 1 Highest Loss Streak 1 | . 1 . 1 To Critical Strikes 1 | . . . 1 Average Slot Usage (%) 99 | . 99 100 100 Engine 14 | . 14 14 14 Treads 27 | . 27 28 28 Device 1 | . 2 . . Storage 14 | . 14 14 14 Protection 12 | . 10 14 13 Energy Gun 2 | . 7 . . Energy Cannon 4 | . . . 8 Ballistic Gun 9 | . 12 14 5 Ballistic Cannon 11 | . 7 13 12 Naked Turns . | . . . . Heaviest Build 62 | 11 54 53 62 Greatest Support 40 | 40 40 40 40 Greatest Overweight (x) 1 | . 1 1 1 Average Overweight (x) . | . . 1 1 Largest Inventory Capacity 20 | 8 20 20 20 Average Capacity 19 | 8 17 20 20 Most Carried 20 | 6 19 20 20 Average Carried 17 | 6 13 19 19 Final Capacity 20 | 8 20 20 20 Final Carried 20 | 6 19 20 20 Class Distribution -------------------- 83% | Mutant 16% | Trapper-Mutant Dominant Class ---------------- Mutant | -10/Materials Mutant | -10/Mines Mutant | -10/Subcaves Resources | -11 -10 -10 -10 ----------- Run | Jun Mat Min Sub Matter Collected 1316 | 200 320 196 600 Remotely . | . . . . Salvage Created 958 | . 558 102 298 Parts 75 | . 49 10 16 Haulers Intercepted 2 | . 2 . . Recyclers Shooed 1 | . 1 . . Parts Field Recycled . | . . . . Retrieved Matter . | . . . . Parts Self-Destructed 2 | . . . 2 Prevented . | . . . . Kills | -11 -10 -10 -10 ------- Run | Jun Mat Min Sub Combat Hostiles Destroyed 27 | . 13 6 8 Guns 11 | . 9 . 2 Cannons 4 | . . 1 3 AOE 12 | . 4 5 3 Classes Destroyed 13 | . 9 1 3 Worker 2 | . 1 1 . Tunneler 1 | . 1 . . Hauler 2 | . 2 . . Recycler 1 | . 1 . . Mechanic 1 | . 1 . . Operator 1 | . 1 . . Watcher 1 | . 1 . . Swarmer 9 | . 6 3 . Grunt 9 | . 7 2 . Sentry 1 | . . . 1 Demolisher 1 | . . 1 . Cobbler 1 | . . . 1 Subdweller 7 | . . . 7 Best Kill Streak 4 | . 3 4 3 Combat Bots Only 3 | . 3 3 3 Max Kills in Single Turn 2 | . 2 2 1 Gunslinging . | . . . . Exploded 2 | . 2 2 1 Melee . | . . . . Uniques/NPCs Destroyed . | . . . . Combat | -11 -10 -10 -10 -------- Run | Jun Mat Min Sub Damage Taken 1341 | . 475 319 547 Core 264 | . 40 51 173 Absorbed by Shields . | . . . . Ignored by Resistances 19 | . . . 19 Regen/Repaired (Parts) 100 | . 100 . . Core Remaining (%) 100 | 100 . . . Volleys Fired 112 | . 61 9 42 Largest 2 | . 2 2 2 Hottest 120 | . 80 55 120 Shots Fired 192 | . 113 15 64 Gun 125 | . 98 6 21 Cannon 53 | . 13 6 34 Launcher 12 | . 2 3 7 Special 2 | . . . 2 Kinetic 101 | . 53 12 36 Thermal 42 | . 21 . 21 Explosive 12 | . 2 3 7 Electromagnetic 37 | . 37 . . Robot Hit Streak 15 | . 8 3 15 Robot Miss Streak 4 | . 4 4 1 Penetration Max . | . . . . Secondary Targets 2 | . 2 . . Max Gunslinging Chain 1 | . 1 . . Shots Hit Robots 106 | . 63 6 37 Core Hits 59 | . 30 10 19 Critical Kills . | . . . . Critical Parts Destroyed . | . . . . Critical Strikes . | . . . . Melee Attacks . | . . . . Impact . | . . . . Slashing . | . . . . Piercing . | . . . . Sneak Attacks . | . . . . Combat Hostiles . | . . . . Follow-up Attacks . | . . . . Damage Inflicted 2349 | . 1080 346 923 Guns 817 | . 563 27 227 Cannons 593 | . 166 58 369 Explosions 919 | . 331 261 327 Melee . | . . . . Ramming 20 | . 20 . . Kinetic 835 | . 329 85 421 Thermal 435 | . 260 . 175 Explosive 781 | . 193 261 327 Electromagnetic 278 | . 278 . . Impact . | . . . . Slashing . | . . . . Piercing . | . . . . Highest Corruption . | . . . . Average Corruption . | . . . . Corruption Purged . | . . . . Corruption Blocked . | . . . . Overload Shots . | . . . . Overflow Damage 28 | . 10 . 18 Projectiles 25 | . 7 . 18 Explosions 3 | . 3 . . Melee . | . . . . Knockbacks 2 | . 1 1 . Impact . | . . . . Kinetic 2 | . 1 1 . Secondary . | . . . . Self-Inflicted Damage 78 | . . 34 44 Shots 3 | . . 1 2 Rammed 6 | . 6 . . Targets Rammed 8 | . 8 . . Kicked . | . . . . Crushed 2 | . 2 . . Highest Temperature 62 | . 62 12 24 Average Temperature 14 | . 17 10 7 Received Heat Transfer 336 | . 174 57 105 Siege Activations . | . . . . Robots Corrupted . | . . . . Combat Hostiles . | . . . . Parts Fried . | . . . . Impact Corruptions . | . . . . Robots Melted . | . . . . Combat Hostiles . | . . . . Parts Melted 1 | . 1 . . Heat Transferred 978 | . 718 . 260 Parts Sabotaged . | . . . . Parts Stolen . | . . . . Parts Stripped . | . . . . Power Chain Reactions 3 | . 3 . . Missiles Intercepted . | . . . . Alert | -11 -10 -10 -10 ------- Run | Jun Mat Min Sub Peak Influence 179 | . 179 89 . Initial . | . . . . Average 65 | . 77 42 . Maximum Alert Level . | . . . . Low Security (%) 100 | 100 100 100 . Level 1 . | . . . . Level 2 . | . . . . Level 3 . | . . . . Level 4 . | . . . . Level 5 . | . . . . High Security . | . . . . Max Security . | . . . . Squads Dispatched 2 | . 2 . . Investigation 2 | . 2 . . Extermination . | . . . . Reinforcement . | . . . . Assault . | . . . . Garrison . | . . . . Intercept . | . . . . Searches Triggered . | . . . . Construction Impeded . | . . . . Haulers Reinforced . | . . . . Active Scanning Responses . | . . . . Cargo Convoy Interrupts . | . . . . Stealth | -11 -10 -10 -10 --------- Run | Jun Mat Min Sub Distress Signals . | . . . . Communications Jammed . | . . . . Distress Signals . | . . . . Times Spotted 42 | . 25 4 13 Peak Tracking Total 3 | . 3 3 2 Tactical Retreats 1 | . 1 . . Traps | -11 -10 -10 -10 ------- Run | Jun Mat Min Sub Traps Triggered 1 | . . . 1 Indirectly . | . . . . Trap Hack Attempts 201 | . 47 . 154 Triggered 1 | . . . 1 Disarmed 2 | . . . 2 Reprogrammed 14 | . 6 . 8 Reused 10 | . . . 10 Traps Extracted 17 | . 6 . 11 Installed 13 | . . . 13 Triggered . | . . . . Most Traps Carried 8 | . 6 6 8 Machines | -11 -10 -10 -10 ---------- Run | Jun Mat Min Sub Machines Disabled 1 | . . . 1 Max in Single Turn 1 | . . . 1 Machines Repaired . | . . . . Machines Sabotaged . | . . . . Overloaded Fab Kills . | . . . . Hacking | -11 -10 -10 -10 --------- Run | Jun Mat Min Sub Machines Accessed 10 | . 9 . 1 Terminals 6 | . 6 . . Fabricators . | . . . . Repair Stations 1 | . 1 . . Recycling Units 2 | . 2 . . Scanalyzers . | . . . . Garrison Access . | . . . . Total Hacks 27 | . 26 . 1 Successful 14 | . 13 . 1 Failed 12 | . 12 . . Catastrophic 1 | . 1 . . Database Lockouts 1 | . 1 . . Manual 15 | . 15 . . Terminals 16 | . 16 . . Fabricators . | . . . . Repair Stations 5 | . 5 . . Recycling Units 5 | . 5 . . Scanalyzers . | . . . . Garrison Access . | . . . . Terminal Hacks 10 | . 9 . 1 Robot Analysis 2 | . 2 . . Prototype ID Bank 2 | . 2 . . Alert Level 1 | . 1 . . Locate Traps 2 | . 2 . . Hauler Manifests 1 | . 1 . . Zone Layout 1 | . 1 . . Derelict Proto ID Bank 1 | . . . 1 Fabricator Hacks . | . . . . Repair Station Hacks 3 | . 3 . . Scan Component 1 | . 1 . . Repair 1 | . 1 . . Refit 1 | . 1 . . Recycling Unit Hacks . | . . . . Scanalyzer . | . . . . Garrison Access Hacks . | . . . . Unauthorized Hacks 1 | . 1 . . Terminals . | . . . . Fabricators . | . . . . Repair Stations . | . . . . Recycling Units 1 | . 1 . . Tunnel 1 | . 1 . . Scanalyzers . | . . . . Garrison Access . | . . . . Data Cores Recovered 1 | . 1 . . Used . | . . . . Hacking Detections 8 | . 8 . . Full Trace Events 1 | . 1 . . Feedback Events . | . . . . Feedback Blocked . | . . . . Robot Schematics Acquired . | . . . . Robots Built . | . . . . Authchips . | . . . . Time . | . . . . Total Robot Build Rating . | . . . . Part Schematics Acquired . | . . . . Parts Built . | . . . . Authchips . | . . . . Time . | . . . . Total Part Build Rating . | . . . . Parts Repaired 1 | . 1 . . Time 26 | . 26 . . Parts Recycled . | . . . . Recycled Matter . | . . . . Retrieved Matter . | . . . . Retrieved Components . | . . . . Parts Scanalyzed . | . . . . Part Schematics Acquired . | . . . . Parts Damaged . | . . . . Bothacking | -11 -10 -10 -10 ------------ Run | Jun Mat Min Sub Used RIF Installer . | . . . . Robots Hacked . | . . . . Non-combat . | . . . . Combat . | . . . . Robot Hacks Applied . | . . . . Relay Couplers Released . | . . . . Fabnet Peak Effective % . | . . . . Robots Rewired . | . . . . Allies Hacked . | . . . . Hacks Repelled . | . . . . Allies | -11 -10 -10 -10 -------- Run | Jun Mat Min Sub Total Allies . | . . . . Largest Group . | . . . . Highest-Rated Group . | . . . . Highest-Rated Ally . | . . . . Total Orders . | . . . . Ally Attacks . | . . . . Total Damage . | . . . . Kills . | . . . . Allies Corrupted . | . . . . Allies Melted . | . . . . Intel | -11 -10 -10 -10 ------- Run | Jun Mat Min Sub Robot Analysis Total 2 | . 2 . . Derelict Logs Recovered 2 | . . 1 1 Drone Launches . | . . . . Drone Recoveries . | . . . . Exploration | -11 -10 -10 -10 ------------- Run | Jun Mat Min Sub Turns Passed 6725 | 3 2085 1130 3507 Spaces Moved 2462 | 1 819 456 1186 Core . | . . . . Treads 2462 | 1 819 456 1186 Legs . | . . . . Wheels . | . . . . Hover . | . . . . Flight . | . . . . Fastest Speed 160 | 160 160 240 240 Average Speed 224 | 160 192 240 240 Slowest Speed 240 | 160 240 240 240 Overloaded Moves . | . . . . Propulsion Burnouts . | . . . . Robots Hopped . | . . . . Cave-ins Triggered . | . . . . Exploration Rate (%) 58 | 2 89 92 52 Regions Visited 3 Branch Regions 2 Pre-discovered Areas 2 | . 1 . 1 Known Exits Taken . | . . . . Unknown Exits Taken 3 | 1 1 1 . Scrap Searched 5 | . . 1 4 Spaces Dug 17 | . . 14 3 Terrain Destroyed 61 | . 16 18 27 Melee . | . . . . Projectile 3 | . . . 3 AOE 58 | . 16 18 24 Terrain Rammed . | . . . . Walls Destroyed . | . . . . Machines Disabled . | . . . . Actions | -11 -10 -10 -10 --------- Run | Jun Mat Min Sub Total 3458 | 2 1214 476 1766 Wait 549 | . 217 8 324 Move 2459 | . 818 455 1186 Hop . | . . . . Pick Up 29 | . 22 1 6 Fast Attach 7 | . 6 . 1 Attach 2 | . 1 . 1 Detach 4 | . 4 . . Swap 50 | 2 14 3 31 Drop 24 | . 16 . 8 Fire 112 | . 61 9 42 Melee . | . . . . Ram . | . . . . Kick . | . . . . Crush 8 | . 8 . . Escape Stasis . | . . . . Rewire . | . . . . Trap 214 | . 47 . 167 Miscellaneous . | . . . . Route ------- -11/Junkyard -10/Materials (discovered 4 exits: [*Mat x2] / [*Min x2]) -10/Mines (discovered 4 exits: [*Mat x2] / [*Exi] / *Sub) -10/Subcaves (discovered 2 exits: [*Mat] / Rec) History --------- Turn | Location | Event 4 | -11/Junkyard | Discovered new exit (range 0) 4 | -11/Junkyard | Entered Materials 311 | -10/Materials | Build established: Mutant 465 | -10/Materials | Central database locked down 500 | -10/Materials | Repaired Lgt. Treads 618 | -10/Materials | Discovered new exit (range 10) 733 | -10/Materials | Discovered new exit (range 16) 879 | -10/Materials | Discovered new exit (range 6) 1866 | -10/Materials | Discovered new exit (range 16) 2089 | -10/Materials | Entered Mines 2310 | -10/Mines | Assembled infested the area 2315 | -10/Mines | Assisted by a Guerilla fighting off Assembled 2487 | -10/Mines | Deemed a non-threat by the Exiles lab entrance 2487 | -10/Mines | Discovered new exit (range 5) 2617 | -10/Mines | Discovered new exit (range 8) 2646 | -10/Mines | Discovered new exit (range 11) 2854 | -10/Mines | Discovered new exit (range 8) 3219 | -10/Mines | Entered Subcaves 3220 | -10/Subcaves | Identified exit to Recycling 4240 | -10/Subcaves | Disturbed a concealed Subdweller 4249 | -10/Subcaves | Core integrity fell below 50% 5371 | -10/Subcaves | Build established: Trapper-Mutant 6303 | -10/Subcaves | Core integrity fell below 20% 6502 | -10/Subcaves | Build established: Mutant 6516 | -10/Subcaves | Visited 4L-MR0's lab 6544 | -10/Subcaves | Found Arachnoskeleton 6646 | -10/Subcaves | Learned location of Zion (-6) 6646 | -10/Subcaves | Met a Zionite searching for "candidates" 6649 | -10/Subcaves | Discovered new exit (range 5) 6726 | -10/Subcaves | Destroyed by 36-WS5(R) with Subdweller Shrapnel Launcher Last Messages --------------- Cargo Legs Tripod Weapons Platform Flightbrick Gun Armor Power Bank Rainbow Chip VL-GR5's Exoskeleton "Deathgrip" Powered Cannon 06531_ Testing Chamber breached. 06535_ Dropped Recalibrator. 06536_ Dropped Sml. Laser. 06536_ Dropped Grenade Launcher. 06544_ Acquired Arachnoskeleton. 06550_ 4L-MR0 mumbles to no one in particular: "Damn Subs sneaking around stealing my stuff." 06646_ O1-KWW(z): "Hey you! It's really dangerous down here, I feel that you could die at any moment. For your health and safety might I suggest a trip to Zion?" World map updated: -6/Zion. 06649_ EXIT=FOUND Map ----- +----------------------------------------------------+ | ?????????????????????????????????????????????????? | | ?????????????????????????????????????????????????? | | ?????????????????????????????????????????????????? | | ?????????????????????????????????????????????????? | | ?????????????????????????????????????????????????? | | ?????????????????????????????????????????????????? | | ?????????????????????????????????????????????????? | | ?????????????????????????????????????????????????? | | ?????????????????????????????????????????????????? | | ?????????????????????????????????????????????????? | | ?????????????????????????????????????????????????? | | ?????????????????????????????????????????????????? | | ?????????????????????????????????????????????????? | | ?????????????????????????????????????????????????? | | ?????????????????????????????????????????????????? | | ?????????????????????????????????????????????????? | | ?????????????????????????????????????????????????? | | ?????????????????????????????????????????????????? | | ????????????????????????###?##???????????????????? | | ???????????????????????## ## ##??????????????????? | | ???????????????????????# ##?????????????????? | | ???????????????????????# ##??????####??????? | | ???????????????????????# "#??????# ??????? | | ???????????? ??????## ""#??????# ####### | | ?????????? ### " "" #??????# # | | ?????????? @"""" #??????# " < # | | ?????????????????### """" #???????#"" | | ???????????????????# ### """############# ## | | ??????????????????# ####" #### #### ##? | | ????????????????? R### ### "" ""# ## "##? | | ???????????????# ?# """ ##"## | | ?????????????? ??### #### #### | | ????????????? ?????#### ##??#### ###?# | | ?????????????# ?????????# #??????###???# | | ?????????????# ##??????????# #????????????## | | ??????????????#?????????????# #?????????????## | | ????????????????????????????######??????????????## | | ?????????????????????????????????????????????????? | | ?????????????????????????????????????????????????? | | ?????????????????????????????????????????????????? | | ?????????????????????????????????????????????????? | | ?????????????????????????????????????????????????? | | ?????????????????????????????????????????????????? | | ?????????????????????????????????????????????????? | | ?????????????????????????????????????????????????? | | ?????????????????????????????????????????????????? | | ?????????????????????????????????????????????????? | | ?????????????????????????????????????????????????? | | ?????????????????????????????????????????????????? | | ?????????????????????????????????????????????????? | +----------------------------------------------------+ Best States ------------- Heat Dissipation 35 Energy Generation 12 Energy Capacity 265 Matter Stores 300 Matter Capacity 300 Sight Range 18 Terrain Scan Density 10 Armor Coverage 100 Resistance: TH 10 Evasion (%) 40 Recoil Reduction 2 Trap Extractor Capacity 4 Item Schematics ----------------- None Robot Schematics ------------------ None Fabricated ------------ Nothing Alien Tech Used ----------------- None Achievements -------------- None Challenges ------------ None Game ------ Seed DimensionalThunderOptics Manual? 0 Play Time 00:22:05 Cumulative 1330.4 hours Start 2023.07.08 @ 14:18:34 End 2023.07.08 @ 14:36:41 Sessions 1 Manual Loads 0 Difficulty Rogue Special Mode None Game No. 956 Rogue 952 Adventurer 4 Explorer 0 Win Type - Total 150 Types 112/10/10/6/2/1/1/5/3 Lore% 95 Gallery% 97 Achievement% 98 Wizard Run 0 Options --------- ASCII 0 Keyboard 1 Movement Vi Keybinds 0 Fullscreen 0 Font 20/X11 Map View 76x50 Tactical HUD 1 Map Filters NONE Filters NONE Steam 1 RUN: 38f1d618-801e-46c5-bf41-888068e57b50